[Event "Portuguese-ch U14-20 2022"]
[Site "Fatima"]
[Date "2022.04.10"]
[Round "1.1"]
[White "Marques, Joao Goncalo B A"]
[Black "Martins, Bruno Andre Leite"]
[Result "0-1"]
[ECO "B00"]
[WhiteElo "1418"]
[BlackElo "2323"]
[Annotator "RC"]
[PlyCount "66"]
[EventDate "2022.04.10"]
[EventType "swiss"]
[EventCountry "POR"]
[SourceTitle "playchess.com"]
[Source "ChessBase"]
[SourceQuality "1"]
[TimeControl "5400+30"]

1. e4 {[%emt 0:00:04]} Nc6 {[%emt 0:00:28]} 2. d4 {[%emt 0:00:13]} d5 {[%emt 0:00:07]} 3. exd5 {[%emt 0:01:02]} Qxd5 {[%emt 0:00:03]} 4. Nf3 {[%emt 0:01:29]} Bg4 {[%emt 0:01:18]} 5. Be2 {[%emt 0:01:50]} O-O-O {[%emt 0:02:06]} 6. c3 {[%emt 0:03:48]} e5 {[%emt 0:06:41]} 7. c4 {[%emt 0:15:27]} Qa5+ {[%emt 0:04:06]} 8. Bd2 {[%emt 0:00:09]} Bb4 {[%emt 0:00:23]} 9. d5 {[%emt 0:03:21]} e4 {[%emt 0:03:30]} 10. Ng5 {[%emt 0:10:51]} Bxe2 {[%emt 0:11:04]} 11. Qxe2 {[%emt 0:00:09]} Nd4 {[%emt 0:25:09]} 12. Qxe4 {[%emt 0:05:01]} Nb3 {[%emt 0:02:22]} 13. O-O {[%emt 0:04:54]} Nxd2 {[%emt 0:14:14]} 14. Nxd2 {[%emt 0:00:25]} Bxd2 {[%emt 0:00:08]} 15. Nxf7 {[%emt 0:00:08]} Nf6 {[%emt 0:00:59]} 16. Qf5+ {[%emt 0:00:14]} Kb8 {[%emt 0:00:41]} 17. Nxh8 {[%emt 0:02:20]} Rxh8 {[%emt 0:00:12]} 18. a3 {[%emt 0:01:30]} Re8 {[%emt 0:07:18]} 19. b4 {[%emt 0:02:21]} Qa4 {[%emt 0:02:09]} 20. Qd3 {[%emt 0:02:48]} Bf4 {[%emt 0:01:56]} 21. g3 {[%emt 0:06:53]} Bd6 {[%emt 0:00:53]} 22. Rfe1 {[%emt 0:08:12]} Rd8 23. Qc3 {[%emt 0:05:47]} Qd7 {[%emt 0:03:03]} 24. Kg2 {[%emt 0:03:31]} h5 {[%emt 0:01:39]} 25. Rad1 {[%emt 0:02:33]} h4 {[%emt 0:02:35]} 26. c5 {[%emt 0:01:56]} h3+ {[%emt 0:00:29]} 27. Kg1 {[%emt 0:00:25]} Bf8 {[%emt 0:01:34]} 28. Re5 {[%emt 0:01:50]} Qg4 {[%emt 0:02:32]} 29. f3 {[%emt 0:02:02]} Qd7 {[%emt 0:00:19]} 30. Qc4 {[%emt 0:02:00]} Qa4 {[%emt 0:01:13]} 31. Qd3 {[%emt 0:03:55]} a5 {[%emt 0:00:43]} 32. Rb1 {[%emt 0:00:48]} axb4 {[%emt 0:00:45]} 33. Rxb4 {[%emt 0:01:35]} Bxc5+ {[%emt 0:00:12]} 0-1

[Event "Portuguese-ch U14-20 2022"]
[Site "Fatima"]
[Date "2022.04.10"]
[Round "1.2"]
[White "Machado, Tomas Dias"]
[Black "Teves, Pedro"]
[Result "1-0"]
[ECO "B89"]
[WhiteElo "2030"]
[BlackElo "1390"]
[Annotator "NA RC"]
[PlyCount "53"]
[EventDate "2022.04.10"]
[EventType "swiss"]
[EventCountry "POR"]
[SourceTitle "playchess.com"]
[Source "ChessBase"]
[SourceQuality "1"]
[TimeControl "5400+30"]

1. e4 {[%emt 0:00:04]} c5 {[%emt 0:00:37]} 2. Nf3 {[%emt 0:00:16]} d6 {[%emt 0:00:21]} 3. d4 {[%emt 0:00:19]} cxd4 {[%emt 0:00:09]} 4. Nxd4 {[%emt 0:00:10]} Nf6 {[%emt 0:00:08]} 5. Nc3 {[%emt 0:00:11]} Nc6 {[%emt 0:01:03]} 6. Bc4 {[%emt 0:09:12]} e6 {[%emt 0:14:05]} 7. Be3 {[%emt 0:02:59]} a6 {[%emt 0:02:16]} 8. Nxc6 {[%emt 0:02:11]} bxc6 {[%emt 0:00:08]} 9. O-O {[%emt 0:00:51]} Be7 {[%emt 0:01:53]} 10. Bb3 {[%emt 0:02:26]} O-O {[%emt 0:02:21]} 11. h3 {[%emt 0:01:49]} Qc7 {[%emt 0:04:56]} 12. f4 {[%emt 0:10:37]} d5 {[%emt 0:22:27]} 13. Qf3 {[%emt 0:01:11]} dxe4 {[%emt 0:07:03]} 14. Nxe4 {[%emt 0:02:30]} Nxe4 {[%emt 0:04:19]} 15. Qxe4 {[%emt 0:00:08]} Bf6 {[%emt 0:00:47]} (15... Bb7 $11) 16. c3 {[%emt 0:02:16]} Bb7 {[%emt 0:02:43]} 17. Bc2 {[%emt 0:13:20]} g6 {[%emt 0:00:00]} 18. Bc5 {[%emt 0:05:07]} Rfd8 $14 {[%emt 0:09:00]} 19. f5 {[%emt 0:15:05]} exf5 {[%emt 0:03:27]} 20. Rxf5 {[%emt 0:00:35]} Bg7 {[%emt 0:03:58]} 21. Raf1 {[%emt 0:07:50]} Re8 {[%emt 0:03:21]} 22. Qf3 {[%emt 0:01:14]} f6 {[%emt 0:03:46]} 23. Rxf6 {[%emt 0:00:27]} Bxf6 {[%emt 0:00:36]} 24. Bb3+ {[%emt 0:00:09]} Kh8 {[%emt 0:01:06]} 25. Qxf6+ {[%emt 0:00:06]} Qg7 {[%emt 0:00:18]} 26. Bd4 {[%emt 0:00:12]} Re7 {[%emt 0:01:02]} 27. Qxe7 {[%emt 0:00:13]} 1-0

[Event "Portuguese-ch U14-20 2022"]
[Site "Fatima"]
[Date "2022.04.10"]
[Round "1.3"]
[White "Maciel, Rafael"]
[Black "Monteiro, Paulo Alexandre G"]
[Result "0-1"]
[ECO "C01"]
[WhiteElo "1665"]
[BlackElo "2032"]
[Annotator "NA RC"]
[PlyCount "106"]
[EventDate "2022.04.10"]
[EventType "swiss"]
[EventCountry "POR"]
[SourceTitle "playchess.com"]
[Source "ChessBase"]
[SourceQuality "1"]
[TimeControl "5400+30"]

1. e4 {[%emt 0:00:03]} e6 {[%emt 0:00:09]} 2. d4 {[%emt 0:00:08]} d5 {[%emt 0:00:07]} 3. exd5 {[%emt 0:00:24]} exd5 {[%emt 0:00:06]} 4. Nf3 {[%emt 0:00:11]} Bd6 {[%emt 0:00:23]} 5. Bd3 {[%emt 0:01:04]} Ne7 {[%emt 0:00:28]} 6. c3 {[%emt 0:01:06]} O-O 7. Nbd2 Bf5 {[%emt 0:08:02]} 8. Nf1 {[%emt 0:04:18]} Re8 {[%emt 0:05:05]} 9. Ne3 {[%emt 0:03:40]} Bxd3 {[%emt 0:09:10]} 10. Qxd3 {[%emt 0:00:12]} Nd7 11. O-O Nf6 12. Re1 c6 {[%emt 0:13:17]} 13. Nf1 {[%emt 0:04:37]} Qc7 {[%emt 0:05:38]} 14. Bg5 {[%emt 0:05:54]} Ne4 {[%emt 0:03:45]} 15. Ng3 {[%emt 0:05:06]} Bxg3 16. hxg3 Ng6 {[%emt 0:14:21]} 17. Rac1 {[%emt 0:06:03]} Qa5 18. Ra1 Re6 19. Be3 Rae8 {[%emt 0:17:15]} 20. Kf1 {[%emt 0:03:46]} Qa4 {[%emt 0:04:48]} 21. Ng5 {[%emt 0:03:24]} Nxg5 {[%emt 0:00:47]} 22. Bxg5 {[%emt 0:00:09] [#]} Rxe1+ $17 {[%emt 0:00:00]} 23. Rxe1 {[%emt 0:45:01]} Rxe1+ {[%emt 0:01:45]} 24. Kxe1 {[%emt 0:00:36]} Qxa2 {[%emt 0:01:26]} 25. Bc1 {[%emt 0:00:30]} Qa5 {[%emt 0:03:16]} 26. Qf5 {[%emt 0:02:14]} Qd8 {[%emt 0:01:04]} 27. Bg5 {[%emt 0:03:00]} Qe8+ {[%emt 0:00:13]} 28. Kd1 {[%emt 0:00:43]} Qe6 {[%emt 0:01:02]} 29. Qf3 {[%emt 0:01:34]} Qe4 {[%emt 0:03:23]} 30. Qxe4 {[%emt 0:01:33]} dxe4 {[%emt 0:00:05]} 31. g4 f6 {[%emt 0:00:14]} 32. Bc1 {[%emt 0:01:52]} Kf7 {[%emt 0:00:33]} 33. Ke2 {[%emt 0:00:47]} Ke6 {[%emt 0:00:28]} 34. b3 {[%emt 0:01:35]} b5 {[%emt 0:00:16]} 35. c4 {[%emt 0:01:03]} bxc4 {[%emt 0:01:39]} 36. bxc4 {[%emt 0:00:08]} f5 {[%emt 0:01:18]} 37. f3 {[%emt 0:01:59]} exf3+ {[%emt 0:01:28]} 38. gxf3 {[%emt 0:00:55]} Ne7 {[%emt 0:02:30]} 39. Be3 {[%emt 0:05:07]} a6 {[%emt 0:00:40]} 40. Bd2 {[%emt 0:00:47]} Nc8 {[%emt 0:00:41]} 41. gxf5+ {[%emt 0:00:43]} Kxf5 {[%emt 0:00:13]} 42. Kd3 {[%emt 0:01:42]} h5 {[%emt 0:00:43]} 43. Ke2 {[%emt 0:01:58]} Nb6 {[%emt 0:00:59]} 44. c5 {[%emt 0:00:49]} Nd5 {[%emt 0:01:23]} 45. Kf2 {[%emt 0:01:07]} Nc7 {[%emt 0:00:55]} 46. Kg3 {[%emt 0:02:00]} Ne6 {[%emt 0:00:45]} 47. Be3 {[%emt 0:01:29]} g5 {[%emt 0:00:15]} 48. Kh3 {[%emt 0:04:42]} a5 {[%emt 0:00:24]} 49. d5 {[%emt 0:01:01]} cxd5 {[%emt 0:00:31]} 50. c6 {[%emt 0:00:06]} a4 {[%emt 0:01:05]} 51. Kg3 {[%emt 0:02:27]} a3 {[%emt 0:00:17]} 52. f4 {[%emt 0:00:13]} gxf4+ 53. Bxf4 {[%emt 0:00:41]} a2 {[%emt 0:01:42]} 0-1

[Event "Portuguese-ch U14-20 2022"]
[Site "Fatima"]
[Date "2022.04.10"]
[Round "1.4"]
[White "Ribeiro, Orlando"]
[Black "Cunha, Alexandre Rodrigo Vi"]
[Result "1-0"]
[ECO "C54"]
[WhiteElo "1945"]
[BlackElo "1603"]
[Annotator "RC"]
[PlyCount "41"]
[EventDate "2022.04.10"]
[EventType "swiss"]
[EventCountry "POR"]
[SourceTitle "playchess.com"]
[Source "ChessBase"]
[SourceQuality "1"]
[TimeControl "5400+30"]

1. e4 {[%emt 0:00:03]} e5 {[%emt 0:00:09]} 2. Nf3 {[%emt 0:00:04]} Nc6 {[%emt 0:00:10]} 3. Bc4 {[%emt 0:00:14]} Bc5 {[%emt 0:00:44]} 4. c3 {[%emt 0:00:19]} Nf6 {[%emt 0:01:36]} 5. d3 {[%emt 0:00:06]} d6 {[%emt 0:00:18]} 6. Bb3 {[%emt 0:00:36]} Bg4 {[%emt 0:01:05]} 7. h3 {[%emt 0:00:08]} Bh5 {[%emt 0:00:22]} 8. Nbd2 {[%emt 0:00:35]} O-O {[%emt 0:00:30]} 9. Nf1 {[%emt 0:00:38]} d5 {[%emt 0:05:49]} 10. Qe2 {[%emt 0:02:54]} dxe4 {[%emt 0:10:10]} 11. dxe4 {[%emt 0:00:45]} Qd6 {[%emt 0:00:43]} 12. Ng3 {[%emt 0:03:20]} Bg6 {[%emt 0:01:52]} 13. Bg5 {[%emt 0:00:07]} h6 {[%emt 0:01:00]} 14. Rd1 {[%emt 0:00:19]} Qe7 {[%emt 0:02:36]} 15. Nh4 {[%emt 0:01:42]} Kh7 {[%emt 0:05:25]} 16. Ngf5 {[%emt 0:02:01]} Qe8 {[%emt 0:02:58]} 17. Bxf6 {[%emt 0:00:39]} gxf6 {[%emt 0:00:22]} 18. Qd2 {[%emt 0:00:07]} Bxf5 {[%emt 0:05:47]} 19. Nxf5 {[%emt 0:01:31]} Ne7 {[%emt 0:00:20]} 20. Qxh6+ {[%emt 0:00:07]} Kg8 {[%emt 0:00:07]} 21. Qg7# {[%emt 0:00:47]} 1-0

[Event "Portuguese-ch U14-20 2022"]
[Site "Fatima"]
[Date "2022.04.10"]
[Round "1.5"]
[White "Lanca, Luis"]
[Black "Santos, Jose Miguel Sereno"]
[Result "0-1"]
[ECO "B13"]
[WhiteElo "1316"]
[BlackElo "1843"]
[Annotator "NA RC"]
[PlyCount "112"]
[EventDate "2022.04.10"]
[EventType "swiss"]
[EventCountry "POR"]
[SourceTitle "playchess.com"]
[Source "ChessBase"]
[SourceQuality "1"]
[TimeControl "5400+30"]

1. e4 {[%emt 0:00:03]} c6 {[%emt 0:00:06]} 2. d4 {[%emt 0:00:10]} d5 {[%emt 0:00:04]} 3. exd5 {[%emt 0:00:40]} cxd5 {[%emt 0:00:06]} 4. Bf4 {[%emt 0:00:45]} Nf6 {[%emt 0:00:22]} 5. Nf3 {[%emt 0:00:44]} Nc6 {[%emt 0:00:08]} 6. c3 {[%emt 0:00:40]} Bg4 {[%emt 0:07:41]} 7. Bd3 {[%emt 0:05:30]} Rc8 {[%emt 0:00:24]} 8. Nbd2 {[%emt 0:01:10]} a6 {[%emt 0:10:49]} 9. O-O {[%emt 0:04:29]} e6 {[%emt 0:00:06]} 10. Re1 {[%emt 0:00:26]} Bd6 {[%emt 0:00:17]} 11. Bxd6 {[%emt 0:09:54]} Qxd6 {[%emt 0:00:12]} 12. Qa4 {[%emt 0:04:26]} O-O {[%emt 0:03:24]} 13. Ne5 {[%emt 0:07:09]} Bh5 {[%emt 0:02:43]} 14. h3 {[%emt 0:06:56]} Nd7 {[%emt 0:00:15]} 15. Nxc6 {[%emt 0:04:00]} Rxc6 {[%emt 0:03:37]} 16. Re5 $2 {[%emt 0:00:21]} Nxe5 {[%emt 0:00:36]} 17. dxe5 {[%emt 0:00:08]} Qxe5 {[%emt 0:00:39]} 18. Qh4 {[%emt 0:00:19]} Bg6 {[%emt 0:01:13]} 19. Bxg6 {[%emt 0:00:29]} hxg6 {[%emt 0:00:38]} 20. Nf3 {[%emt 0:00:06]} Qf6 {[%emt 0:03:04]} 21. Qg3 {[%emt 0:00:42]} Rfc8 {[%emt 0:00:21]} 22. Rd1 {[%emt 0:01:36]} Rb6 {[%emt 0:06:04]} 23. Rd2 {[%emt 0:00:25]} a5 {[%emt 0:00:58]} 24. Ne5 {[%emt 0:00:50]} Ra6 {[%emt 0:01:12]} 25. Rd4 {[%emt 0:01:42]} b5 {[%emt 0:04:24]} 26. Nf3 {[%emt 0:03:10]} Qe7 $19 {[%emt 0:16:30]} 27. Qg4 {[%emt 0:03:08]} Rc4 {[%emt 0:02:21]} 28. Ng5 {[%emt 0:04:23]} Rxd4 {[%emt 0:00:23]} 29. cxd4 {[%emt 0:00:06]} f6 {[%emt 0:01:16]} 30. Nf3 {[%emt 0:00:39]} Qe8 {[%emt 0:00:23]} 31. Qf4 {[%emt 0:01:15]} Rc6 {[%emt 0:00:09]} 32. Qd2 {[%emt 0:00:13]} b4 {[%emt 0:01:58]} 33. b3 {[%emt 0:00:44]} Qc8 {[%emt 0:00:24]} 34. Qd3 {[%emt 0:00:22]} Qc7 {[%emt 0:00:27]} 35. g3 {[%emt 0:00:37]} g5 {[%emt 0:03:56]} 36. Qg6 {[%emt 0:00:37]} Qc8 {[%emt 0:00:30]} 37. h4 {[%emt 0:00:24]} gxh4 {[%emt 0:02:09]} 38. gxh4 {[%emt 0:00:52]} Kf8 {[%emt 0:06:19]} 39. h5 {[%emt 0:02:27]} Rc1+ {[%emt 0:02:18]} 40. Kg2 {[%emt 0:00:10]} Qc2 {[%emt 0:00:28]} 41. Qg3 {[%emt 0:00:14]} Qf5 {[%emt 0:01:25]} 42. Qd6+ {[%emt 0:03:46]} Kg8 {[%emt 0:00:14]} 43. Qb8+ {[%emt 0:01:41]} Kh7 {[%emt 0:00:44]} 44. Qg3 {[%emt 0:00:59]} Qxh5 {[%emt 0:00:44]} 45. Nh2 {[%emt 0:00:19]} Rc3 {[%emt 0:01:35]} 46. Qf4 {[%emt 0:00:53]} f5 {[%emt 0:02:17]} 47. Qd2 {[%emt 0:00:38]} Rh3 {[%emt 0:00:36]} 48. Qf4 {[%emt 0:00:29]} Rxh2+ {[%emt 0:00:38]} 49. Qxh2 {[%emt 0:00:08]} Qxh2+ {[%emt 0:00:04]} 50. Kxh2 {[%emt 0:00:02]} Kh6 {[%emt 0:00:05]} 51. Kg3 {[%emt 0:00:01]} g5 {[%emt 0:00:17]} 52. f3 {[%emt 0:00:23]} Kh5 {[%emt 0:00:15]} 53. f4 {[%emt 0:00:43]} g4 {[%emt 0:00:05]} 54. Kg2 {[%emt 0:00:11]} Kh4 {[%emt 0:00:04]} 55. Kh2 {[%emt 0:00:02]} g3+ {[%emt 0:00:04]} 56. Kg2 {[%emt 0:00:06]} Kg4 {[%emt 0:00:07]} 0-1

[Event "Portuguese-ch U14-20 2022"]
[Site "Fatima"]
[Date "2022.04.10"]
[Round "1.6"]
[White "Leao, Tiago Miguel Da Silv"]
[Black "Oliveira, Daniela Sousa"]
[Result "1-0"]
[ECO "B20"]
[WhiteElo "2131"]
[BlackElo "1272"]
[Annotator "RC"]
[PlyCount "91"]
[EventDate "2022.04.10"]
[EventType "swiss"]
[EventCountry "POR"]
[SourceTitle "playchess.com"]
[Source "ChessBase"]
[SourceQuality "1"]
[TimeControl "5400+30"]

1. e4 {[%emt 0:00:05]} c5 {[%emt 0:00:12]} 2. c4 {[%emt 0:00:07]} d6 {[%emt 0:00:05]} 3. Nc3 {[%emt 0:00:05]} a6 {[%emt 0:00:10]} 4. g3 {[%emt 0:00:06]} Nf6 {[%emt 0:00:20]} 5. Bg2 {[%emt 0:00:05]} e5 {[%emt 0:00:46]} 6. Nge2 {[%emt 0:00:10]} Be7 {[%emt 0:01:03]} 7. a3 {[%emt 0:00:07]} Nc6 {[%emt 0:01:11]} 8. Rb1 {[%emt 0:00:20]} Rb8 {[%emt 0:00:16]} 9. b4 {[%emt 0:00:29]} b5 {[%emt 0:02:39]} 10. cxb5 {[%emt 0:02:06]} axb5 {[%emt 0:02:19]} 11. bxc5 {[%emt 0:00:40]} dxc5 {[%emt 0:07:46]} 12. Rxb5 {[%emt 0:01:42]} Rxb5 {[%emt 0:02:51]} 13. Nxb5 {[%emt 0:00:30]} Qa5 {[%emt 0:03:04]} 14. Nbc3 {[%emt 0:04:05]} Nd4 {[%emt 0:04:35]} 15. Nxd4 {[%emt 0:01:15]} cxd4 {[%emt 0:00:35]} 16. Qa4+ {[%emt 0:00:41]} Qxa4 {[%emt 0:01:33]} 17. Nxa4 {[%emt 0:00:07]} O-O {[%emt 0:02:06]} 18. O-O {[%emt 0:03:49]} Bb7 {[%emt 0:05:04]} 19. Re1 {[%emt 0:02:04]} Ra8 {[%emt 0:07:48]} 20. Nb6 {[%emt 0:00:30]} Ra6 {[%emt 0:00:19]} 21. Nc4 {[%emt 0:02:01]} Nd7 {[%emt 0:05:31]} 22. Bf1 {[%emt 0:04:47]} Ra4 {[%emt 0:03:18]} 23. Bb2 {[%emt 0:10:32]} Ba6 {[%emt 0:05:46]} 24. Rc1 {[%emt 0:01:20]} Bg5 {[%emt 0:05:33]} 25. Nxe5 {[%emt 0:14:11]} Nxe5 {[%emt 0:06:41]} 26. Bxa6 {[%emt 0:00:17]} g6 {[%emt 0:00:14]} 27. Rc8+ {[%emt 0:02:11]} Kg7 {[%emt 0:00:28]} 28. Be2 {[%emt 0:04:00]} Bxd2 {[%emt 0:01:43]} 29. f4 {[%emt 0:00:46]} Be3+ {[%emt 0:06:34]} 30. Kg2 {[%emt 0:02:07]} Nd7 {[%emt 0:00:53]} 31. Bb5 {[%emt 0:01:54]} Ra7 {[%emt 0:00:24]} 32. Rc6 {[%emt 0:05:31]} Nf6 {[%emt 0:07:52]} 33. Kf3 Re7 {[%emt 0:02:47]} 34. e5 {[%emt 0:05:07]} Nd5 {[%emt 0:04:16]} 35. Rd6 {[%emt 0:03:21]} Nc7 {[%emt 0:00:39]} 36. a4 {[%emt 0:01:11]} Nxb5 {[%emt 0:02:42]} 37. axb5 {[%emt 0:00:13]} Rb7 {[%emt 0:00:16]} 38. b6 {[%emt 0:00:29]} Bg1 {[%emt 0:01:22]} 39. Ke4 {[%emt 0:03:50]} Bxh2 {[%emt 0:02:23]} 40. Bxd4 {[%emt 0:00:51]} Bxg3 {[%emt 0:00:23]} 41. e6+ {[%emt 0:00:39]} Kf8 {[%emt 0:02:27]} 42. Rd7 {[%emt 0:00:40]} f5+ {[%emt 0:02:42]} 43. Kf3 {[%emt 0:00:38]} Rb8 {[%emt 0:01:20]} 44. Rxh7 {[%emt 0:00:17]} Bh4 {[%emt 0:00:32]} 45. Rxh4 {[%emt 0:00:25]} Rb7 {[%emt 0:00:25]} 46. Rh8+ {[%emt 0:00:15]} 1-0

[Event "Portuguese-ch U14-20 2022"]
[Site "Fatima"]
[Date "2022.04.10"]
[Round "1.7"]
[White "Rodrigues, Guilherme Eufrasio"]
[Black "Voges, Guilherme"]
[Result "0-1"]
[ECO "A10"]
[WhiteElo "1171"]
[BlackElo "1657"]
[Annotator "NA RC"]
[PlyCount "72"]
[EventDate "2022.04.10"]
[EventType "swiss"]
[EventCountry "POR"]
[SourceTitle "playchess.com"]
[Source "ChessBase"]
[SourceQuality "1"]
[TimeControl "5400+30"]

1. c4 {[%emt 0:00:01]} g6 {[%emt 0:00:12]} 2. g3 {[%emt 0:00:03]} Bg7 {[%emt 0:00:06]} 3. Bg2 {[%emt 0:00:04]} d6 {[%emt 0:00:10]} 4. Nc3 {[%emt 0:00:04]} Nf6 {[%emt 0:00:09]} 5. Nf3 {[%emt 0:00:05]} c5 {[%emt 0:00:11]} 6. d4 {[%emt 0:00:15]} cxd4 {[%emt 0:00:25]} 7. Nxd4 {[%emt 0:00:04]} O-O {[%emt 0:00:14]} 8. O-O {[%emt 0:00:06]} Qc7 {[%emt 0:03:54]} 9. b3 {[%emt 0:02:25]} a6 {[%emt 0:01:57]} 10. Bb2 {[%emt 0:03:18]} Nc6 {[%emt 0:01:18]} 11. e3 {[%emt 0:05:49]} Rb8 {[%emt 0:04:26]} 12. Qc2 {[%emt 0:06:02]} Nxd4 {[%emt 0:02:14]} 13. exd4 {[%emt 0:01:41]} Bf5 {[%emt 0:00:11]} 14. Qe2 {[%emt 0:02:33]} b5 {[%emt 0:01:42]} 15. cxb5 {[%emt 0:03:58]} axb5 {[%emt 0:02:00]} 16. Nxb5 {[%emt 0:00:52]} Qb6 {[%emt 0:02:40]} 17. Nc3 {[%emt 0:03:33]} Rbc8 {[%emt 0:18:52]} 18. Rfe1 {[%emt 0:17:06]} Rfe8 {[%emt 0:17:37]} 19. h3 {[%emt 0:08:01]} Qb4 {[%emt 0:03:42]} 20. Nd5 {[%emt 0:00:29]} Nxd5 {[%emt 0:00:25]} 21. Bxd5 {[%emt 0:00:05]} Rc2 {[%emt 0:00:12]} 22. Qf3 {[%emt 0:02:41]} Rxb2 {[%emt 0:04:27]} 23. g4 {[%emt 0:00:04]} Bxd4 {[%emt 0:00:40]} 24. gxf5 {[%emt 0:07:35]} Rxf2 {[%emt 0:00:16]} 25. Qxf2 {[%emt 0:00:10]} Bxf2+ {[%emt 0:00:06]} 26. Kxf2 {[%emt 0:00:09]} Qd2+ {[%emt 0:00:14]} 27. Re2 {[%emt 0:01:15]} Qd4+ {[%emt 0:01:10]} 28. Kg2 {[%emt 0:02:57]} Qxa1 {[%emt 0:01:32]} 29. fxg6 {[%emt 0:00:07]} hxg6 {[%emt 0:00:16]} 30. Bc6 {[%emt 0:00:31]} Rc8 {[%emt 0:00:37]} 31. Bd5 {[%emt 0:00:35]} Qd4 {[%emt 0:00:40]} 32. Bc4 {[%emt 0:01:02]} d5 {[%emt 0:00:43]} 33. Ba6 {[%emt 0:01:23]} Rc7 {[%emt 0:00:20]} 34. Bb5 {[%emt 0:02:39]} e5 {[%emt 0:00:35]} 35. Rf2 {[%emt 0:00:38]} Qe4+ {[%emt 0:00:24]} 36. Rf3 {[%emt 0:00:44]} Rc3 {[%emt 0:00:14]} 0-1

[Event "Portuguese-ch U14-20 2022"]
[Site "Fatima"]
[Date "2022.04.10"]
[Round "1.8"]
[White "Oliveira, Beatriz Correia"]
[Black "Quinta, Diogo Manuel Rodrigu"]
[Result "1-0"]
[ECO "A50"]
[WhiteElo "1558"]
[BlackElo "1127"]
[Annotator "NA RC"]
[PlyCount "77"]
[EventDate "2022.04.10"]
[EventType "swiss"]
[EventCountry "POR"]
[SourceTitle "playchess.com"]
[Source "ChessBase"]
[SourceQuality "1"]
[TimeControl "5400+30"]

1. d4 {[%emt 0:00:04]} Nf6 {[%emt 0:01:10]} 2. c4 {[%emt 0:00:20]} c6 {[%emt 0:01:45]} 3. Nf3 {[%emt 0:01:05]} d5 {[%emt 0:01:35]} 4. Bf4 {[%emt 0:01:55]} Bf5 {[%emt 0:01:45]} 5. e3 {[%emt 0:00:42]} e6 {[%emt 0:01:15]} 6. Bd3 {[%emt 0:01:02]} Bb4+ {[%emt 0:03:14]} 7. Nc3 {[%emt 0:00:55]} Ne4 {[%emt 0:03:02]} 8. Qc2 {[%emt 0:02:06]} Qf6 {[%emt 0:02:04]} 9. cxd5 {[%emt 0:02:23]} exd5 {[%emt 0:01:22]} 10. O-O {[%emt 0:01:03]} Bxc3 {[%emt 0:01:12]} 11. bxc3 {[%emt 0:00:58]} O-O {[%emt 0:01:00]} 12. c4 {[%emt 0:02:39]} Nd7 {[%emt 0:02:28]} 13. cxd5 {[%emt 0:02:52]} cxd5 {[%emt 0:01:17]} 14. Qb3 {[%emt 0:04:40]} Nb6 {[%emt 0:02:18]} 15. Rfc1 {[%emt 0:05:51]} Rfc8 {[%emt 0:10:03]} 16. Bc7 {[%emt 0:02:58]} Qg6 {[%emt 0:04:21]} 17. Bxb6 {[%emt 0:04:03]} axb6 {[%emt 0:01:09]} 18. Qxd5 {[%emt 0:01:14]} Bh3 {[%emt 0:12:22]} 19. Bf1 {[%emt 0:01:03]} Nc3 {[%emt 0:03:54]} 20. Qg5 {[%emt 0:01:55]} Qxg5 {[%emt 0:01:27]} 21. Nxg5 {[%emt 0:00:08]} Bxg2 {[%emt 0:00:43]} 22. Kxg2 {[%emt 0:00:24]} h6 {[%emt 0:03:58]} 23. Nf3 {[%emt 0:01:13]} g5 {[%emt 0:01:16]} 24. Bd3 {[%emt 0:01:44]} b5 {[%emt 0:06:33]} 25. Rc2 {[%emt 0:04:10]} Ra3 {[%emt 0:01:48]} 26. Bxb5 {[%emt 0:01:25]} Rca8 {[%emt 0:01:27]} 27. Bc4 {[%emt 0:01:33]} R8a4 {[%emt 0:01:32]} 28. Bb3 {[%emt 0:01:19]} Rxb3 {[%emt 0:01:16]} 29. axb3 {[%emt 0:00:06]} Rxa1 {[%emt 0:00:21]} 30. Rxc3 {[%emt 0:00:05]} g4 {[%emt 0:01:08]} 31. Ne5 {[%emt 0:00:18]} h5 {[%emt 0:01:39]} 32. Rc8+ {[%emt 0:00:48]} Kg7 {[%emt 0:00:39]} 33. Rc7 {[%emt 0:00:47]} h4 {[%emt 0:01:38]} 34. Nxg4 {[%emt 0:00:34]} Ra5 {[%emt 0:00:55]} 35. Rxb7 {[%emt 0:00:35]} Rg5 {[%emt 0:00:37]} 36. h3 {[%emt 0:00:17]} Kg6 {[%emt 0:00:29]} 37. e4 {[%emt 0:01:39]} f5 {[%emt 0:00:48]} 38. Rb6+ {[%emt 0:01:34]} Kh5 {[%emt 0:00:47]} 39. Rh6# {[%emt 0:00:10]} 1-0

[Event "Portuguese-ch U14-20 2022"]
[Site "Fatima"]
[Date "2022.04.10"]
[Round "1.9"]
[White "Gage, Daniel"]
[Black "Paiva, Manuel Maria Fonseca"]
[Result "0-1"]
[ECO "B99"]
[WhiteElo "1752"]
[BlackElo "1370"]
[Annotator "NA RC"]
[PlyCount "92"]
[EventDate "2022.04.10"]
[EventType "swiss"]
[EventCountry "POR"]
[SourceTitle "playchess.com"]
[Source "ChessBase"]
[SourceQuality "1"]
[TimeControl "5400+30"]

1. e4 {[%emt 0:00:04]} c5 {[%emt 0:00:02]} 2. Nf3 {[%emt 0:00:06]} d6 {[%emt 0:00:01]} 3. d4 {[%emt 0:00:10]} cxd4 {[%emt 0:00:02]} 4. Nxd4 {[%emt 0:00:10]} Nf6 {[%emt 0:00:01]} 5. Nc3 {[%emt 0:00:18]} a6 {[%emt 0:00:04]} 6. Bg5 {[%emt 0:00:14]} e6 {[%emt 0:00:06]} 7. f4 {[%emt 0:00:08]} Be7 {[%emt 0:00:03]} 8. Qf3 {[%emt 0:00:13]} Nbd7 {[%emt 0:00:10]} 9. O-O-O {[%emt 0:00:36]} Qc7 {[%emt 0:00:03]} 10. g4 {[%emt 0:00:51]} b5 {[%emt 0:00:05]} 11. Bxf6 {[%emt 0:03:11]} Nxf6 {[%emt 0:00:09]} 12. g5 {[%emt 0:00:27]} Nd7 {[%emt 0:00:44]} 13. f5 {[%emt 0:03:17]} e5 {[%emt 0:00:11]} 14. Nb3 {[%emt 0:08:09]} Bxg5+ {[%emt 0:00:30]} 15. Kb1 {[%emt 0:00:13]} Nb6 {[%emt 0:01:28]} 16. a3 {[%emt 0:30:54]} Bd7 {[%emt 0:01:54]} 17. h4 {[%emt 0:00:16]} Be7 {[%emt 0:00:40]} 18. h5 {[%emt 0:02:46]} Rc8 {[%emt 0:01:03]} 19. Bd3 {[%emt 0:00:48]} h6 {[%emt 0:00:48]} 20. Rhg1 {[%emt 0:01:07]} Bf6 {[%emt 0:01:20]} 21. Nd2 {[%emt 0:03:41]} Bc6 {[%emt 0:02:07]} 22. Nf1 {[%emt 0:01:00]} Nc4 {[%emt 0:00:50]} 23. Bxc4 {[%emt 0:02:03]} bxc4 {[%emt 0:00:01]} 24. Ne3 {[%emt 0:00:21]} Ba8 {[%emt 0:00:56]} 25. Qe2 {[%emt 0:01:05]} Bg5 {[%emt 0:02:39]} 26. Ned5 {[%emt 0:01:07]} Bxd5 {[%emt 0:00:03]} 27. Nxd5 {[%emt 0:00:02]} Qb7 {[%emt 0:01:11]} 28. c3 {[%emt 0:05:12]} Kd7 {[%emt 0:08:18]} 29. Qf2 {[%emt 0:02:22]} Rb8 {[%emt 0:00:31]} 30. Rg2 {[%emt 0:03:43]} f6 {[%emt 0:00:34]} 31. Qe2 {[%emt 0:01:02]} Qb3 {[%emt 0:02:22]} 32. Ka1 {[%emt 0:01:44]} a5 {[%emt 0:03:03]} 33. Rb1 {[%emt 0:01:41]} Rb7 {[%emt 0:06:26]} 34. Rgg1 {[%emt 0:00:50]} Rhb8 {[%emt 0:10:19]} 35. Qf2 {[%emt 0:01:07]} Qb5 {[%emt 0:03:04]} 36. Rgd1 {[%emt 0:01:31]} Qa4 {[%emt 0:01:30]} 37. Qe2 {[%emt 0:01:21]} Rb3 {[%emt 0:04:06]} 38. Ka2 {[%emt 0:01:12]} R8b7 {[%emt 0:03:19]} 39. Qf2 {[%emt 0:01:12]} Qc6 {[%emt 0:04:02]} 40. Qg1 {[%emt 0:01:19]} Qa4 {[%emt 0:02:01]} 41. Qf2 {[%emt 0:00:36]} R3b5 {[%emt 0:02:06]} 42. Qe2 {[%emt 0:00:49]} Ke8 {[%emt 0:01:54]} 43. Qf2 {[%emt 0:02:59]} Bh4 {[%emt 0:12:55]} 44. Qxh4 {[%emt 0:02:49]} Qc2 {[%emt 0:00:23]} 45. Nb4 {[%emt 0:04:59]} axb4 {[%emt 0:00:49]} 46. cxb4 {[%emt 0:00:15]} Rxb4 0-1